Cogmind - Beta 12 @@@ ROGUE MODE // 2023.07.04 @ 16:16:25 Player: zapruda Result: Smashed by cave-in Performance ------------- Evolutions (2) 1000 Regions Visited (4) 800 Robots Destroyed (123) 615 Value Destroyed (3258) 3258 Prototype IDs (11) 220 Alien Tech Used (0) 0 Bonus (90) 90 TOTAL SCORE: 5983 Bonus ------- High Alert Combat Kills 90 Cogmind --------- Core Integrity 0/550 Matter 147/300 Energy 280/280 System Corruption 5% Temperature Cool (14) Movement Treading (160) Location -8/Storage Parts ------- > --- POWER (1) -------- Cooled Ion Engine > --- PROPULSION (2) --- Light Treads Light Treads > --- UTILITY (6) ------ Medium Storage Unit Improved Signal Interpreter Light Regenerative Plating Hacking Suite Hacking Suite > --- WEAPON (2) ------- Heavy Assault Cannon > --- INVENTORY (10) --- Cooled Ion Engine Cryofiber Web Advanced Heat Sink Hacking Suite Authchip [R/NC] Authchip [R/Combat] Authchip [R/Combat] Authchip [Propulsion] Authchip [Processor] Precision Beam Rifle Peak State ------------ > --- POWER ------------ Light Angular Momentum Engine > --- PROPULSION ------- Airjet Airjet > --- UTILITY ---------- Medium Storage Unit Improved Sensor Array Improved Signal Interpreter Hacking Suite Hacking Suite Hacking Suite > --- WEAPON ----------- Heavy Assault Cannon > --- INVENTORY -------- Deuterium Engine Airjet Cryofiber Web Advanced Heat Sink Weight Redist. System Hardened Light Armor Plating Hacking Suite Heavy EM Shotgun Advanced Beam Cannon Improved Grenade Launcher [Rating: 36] Favorites ----------- Power Deuterium Engine Engine Deuterium Engine Power Core Light Nuclear Core Propulsion Improved Treads Treads Improved Treads Leg Aluminum Leg Hover Unit Airjet Flight Unit Improved VTOL Module Utility Hacking Suite Device Improved Heat Sink Storage High-capacity Storage Unit Processor Improved Signal Interpreter Hackware Hacking Suite Protection Hardened Light Armor Plating Weapon Particle Cannon Energy Gun Medium Laser Energy Cannon Particle Cannon Ballistic Gun Improved Assault Rifle Ballistic Cannon Heavy Assault Cannon Launcher Improved Grenade Launcher Build | -11 -10 -9 -8 -8 ------- Run | Jun Mat Mat Mat Sto Slots Evolved 4 | . . 2 2 . Power . | . . . . . Propulsion . | . . . . . Utility 4 | . . 2 2 . Weapon . | . . . . . Parts Attached 76 | . 10 20 8 38 Power 12 | . 1 2 . 9 Engine 11 | . 1 2 . 8 Core 1 | . . . . 1 Reactor . | . . . . . Propulsion 22 | . 4 5 3 10 Treads 11 | . 2 4 . 5 Leg 3 | . 2 . . 1 Wheel . | . . . . . Hover 7 | . . 1 3 3 Flight 1 | . . . . 1 Utility 23 | . 3 7 4 9 Device 11 | . 1 4 1 5 Storage 3 | . 1 . 1 1 Processor 2 | . . . 1 1 Hackware 3 | . 1 1 1 . Protection 4 | . . 2 . 2 Artifact . | . . . . . Weapon 19 | . 2 6 1 10 Energy Gun 3 | . . 1 . 2 Energy Cannon 7 | . 2 3 . 2 Ballistic Gun 3 | . . 2 . 1 Ballistic Cannon 4 | . . . . 4 Launcher 2 | . . . 1 1 Special Weapon . | . . . . . Impact Weapon . | . . . . . Slashing Weapon . | . . . . . Piercing Weapon . | . . . . . Special Melee Weapon . | . . . . . Unidentified Prototypes 8 | . . 2 . 6 Parts Lost 18 | . . 6 2 10 Power 2 | . . 1 . 1 Propulsion 9 | . . 3 1 5 Utility 3 | . . 1 . 2 Weapon 4 | . . 1 1 2 Highest Loss Streak 6 | . . 3 1 6 To Critical Strikes . | . . . . . Average Slot Usage (%) 96 | . 97 99 97 90 Engine 10 | . 14 10 9 8 Treads 15 | . 12 21 . 7 Leg 4 | . 15 . . 1 Hover 2 | . . . 18 7 Device 8 | . . 12 16 6 Storage 11 | . 14 11 9 9 Processor 2 | . . . . 9 Hackware 16 | . 11 13 26 27 Protection 3 | . . 6 . 2 Energy Cannon 15 | . 21 17 9 6 Ballistic Gun 3 | . 3 4 3 . Ballistic Cannon 1 | . . . . 4 Naked Turns . | . . . . . Heaviest Build 63 | 14 53 63 31 34 Greatest Support 46 | 20 46 46 20 40 Greatest Overweight (x) 10 | . 5 2 1 10 Average Overweight (x) . | . . 1 1 . Largest Inventory Capacity 20 | . 20 20 20 10 Average Capacity 15 | . 12 20 10 10 Most Carried 20 | . 10 20 20 10 Average Carried 13 | . 7 18 8 8 Final Capacity 20 | 8 20 20 10 10 Final Carried 20 | 6 10 20 7 10 Class Distribution -------------------- 60% | Mutant 23% | Hacker-Mutant 15% | Scavenger-Mutant Dominant Class ---------------- Mutant | -10/Materials Mutant | -9/Materials Hacker-Mutant | -8/Materials Scavenger-Mutant | -8/Storage Resources | -11 -10 -9 -8 -8 ----------- Run | Jun Mat Mat Mat Sto Matter Collected 1637 | 200 205 282 44 906 Remotely . | . . . . . Salvage Created 4421 | . 750 1888 133 1650 Parts 288 | . 57 136 7 88 Haulers Intercepted 13 | . 2 5 . 6 Recyclers Shooed 3 | . 3 . . . Parts Field Recycled . | . . . . . Retrieved Matter . | . . . . . Parts Self-Destructed . | . . . . . Prevented . | . . . . . Kills | -11 -10 -9 -8 -8 ------- Run | Jun Mat Mat Mat Sto Combat Hostiles Destroyed 78 | . 12 36 3 27 Guns 11 | . 7 3 . 1 Cannons 65 | . 5 33 2 25 AOE 2 | . . . 1 1 Classes Destroyed 11 | . 7 4 . . Worker 4 | . . 2 . 2 Builder 6 | . 2 . . 4 Hauler 13 | . 2 5 . 6 Recycler 4 | . 1 . . 3 Mechanic 1 | . . 1 . . Operator 7 | . 3 2 . 2 Watcher 10 | . 3 5 . 2 Swarmer 16 | . 3 8 . 5 Grunt 45 | . 9 18 2 16 Brawler 1 | . . 1 . . Sentry 16 | . . 9 1 6 Best Kill Streak 6 | . 5 6 1 4 Combat Bots Only 4 | . 3 4 1 4 Max Kills in Single Turn 2 | . 2 2 1 1 Gunslinging 1 | . 1 . . . Exploded 1 | . . . 1 1 Melee . | . . . . . Uniques/NPCs Destroyed . | . . . . . Combat | -11 -10 -9 -8 -8 -------- Run | Jun Mat Mat Mat Sto Damage Taken 4221 | . 554 1420 230 2017 Core 869 | . 162 143 83 481 Absorbed by Shields . | . . . . . Regen/Repaired (Parts) 255 | . . 242 . 13 Core Remaining (%) 66 | 100 35 64 . . Volleys Fired 361 | . 77 107 23 154 Largest 2 | . 2 2 2 2 Hottest 143 | . 136 136 104 143 Shots Fired 576 | . 146 214 29 187 Gun 126 | . 78 34 4 10 Cannon 447 | . 68 180 23 176 Launcher 3 | . . . 2 1 Special . | . . . . . Kinetic 154 | . 35 34 4 81 Thermal 419 | . 111 180 23 105 Explosive 3 | . . . 2 1 Electromagnetic . | . . . . . Robot Hit Streak 14 | . 9 12 9 14 Robot Miss Streak 5 | . 3 5 3 3 Penetration Max 1 | . . . . 1 Secondary Targets 1 | . 1 . . . Max Gunslinging Chain 1 | . 1 . . . Shots Hit Robots 346 | . 85 129 18 114 Core Hits 147 | . 31 57 7 52 Critical Kills . | . . . . . Critical Parts Destroyed . | . . . . . Critical Strikes 8 | . 3 . . 5 Burn 3 | . 3 . . . Blast 5 | . . . . 5 Melee Attacks . | . . . . . Impact . | . . . . . Slashing . | . . . . . Piercing . | . . . . . Sneak Attacks . | . . . . . Combat Hostiles . | . . . . . Follow-up Attacks . | . . . . . Damage Inflicted 8830 | . 1380 2712 508 4230 Guns 1195 | . 649 354 65 127 Cannons 7256 | . 731 2358 267 3900 Explosions 379 | . . . 176 203 Melee . | . . . . . Ramming . | . . . . . Kinetic 3519 | . 273 354 65 2827 Thermal 4932 | . 1107 2358 267 1200 Explosive 379 | . . . 176 203 Electromagnetic . | . . . . . Impact . | . . . . . Slashing . | . . . . . Piercing . | . . . . . Highest Corruption . | . . . . . Average Corruption . | . . . . . Corruption Purged . | . . . . . Corruption Blocked . | . . . . . Overload Shots . | . . . . . Overflow Damage 264 | . 38 7 4 215 Projectiles 239 | . 38 7 . 194 Explosions 25 | . . . 4 21 Melee . | . . . . . Knockbacks 11 | . . . . 11 Impact . | . . . . . Kinetic 11 | . . . . 11 Secondary . | . . . . . Self-Inflicted Damage 15 | . . . . 15 Shots 1 | . . . . 1 Rammed . | . . . . . Targets Rammed . | . . . . . Kicked . | . . . . . Crushed . | . . . . . Highest Temperature 636 | . 351 525 . 636 Average Temperature 110 | . 95 113 . 124 Received Heat Transfer 1905 | . 303 513 99 990 Effects 15 | . 4 2 . 9 Shutdowns 1 | . . . . 1 Energy Bleed 3 | . 1 1 . 1 Interference 5 | . 2 . . 3 Matter Decay 1 | . . . . 1 Short Circuit 1 | . 1 . . . Damage (minor) 1 | . . 1 . . Damage (major) 3 | . . . . 3 Siege Activations . | . . . . . Robots Corrupted . | . . . . . Combat Hostiles . | . . . . . Parts Fried . | . . . . . Impact Corruptions . | . . . . . Robots Melted . | . . . . . Combat Hostiles . | . . . . . Parts Melted 8 | . 2 6 . . Heat Transferred 9509 | . 2664 4255 481 2109 Parts Sabotaged . | . . . . . Parts Stolen . | . . . . . Parts Stripped . | . . . . . Power Chain Reactions . | . . . . . Missiles Intercepted . | . . . . . Alert | -11 -10 -9 -8 -8 ------- Run | Jun Mat Mat Mat Sto Peak Influence 604 | . 305 604 177 418 Initial 74 | . . 31 73 74 Average 230 | . 132 296 111 209 Maximum Alert Level 2 | . 1 2 . 2 Low Security (%) 52 | . 88 37 100 43 Level 1 32 | . 11 32 . 54 Level 2 14 | . . 30 . 1 Level 3 . | . . . . . Level 4 . | . . . . . Level 5 . | . . . . . High Security . | . . . . . Max Security . | . . . . . Squads Dispatched 16 | . 3 5 . 8 Investigation 3 | . 1 2 . . Extermination . | . . . . . Reinforcement 7 | . 2 3 . 2 Assault . | . . . . . Garrison 6 | . . . . 6 Intercept . | . . . . . Searches Triggered . | . . . . . Construction Impeded 1 | . . . . 1 Haulers Reinforced . | . . . . . Active Scanning Responses . | . . . . . Cargo Convoy Interrupts . | . . . . . Stealth | -11 -10 -9 -8 -8 --------- Run | Jun Mat Mat Mat Sto Distress Signals 13 | . 3 5 2 3 Communications Jammed . | . . . . . Distress Signals . | . . . . . Times Spotted 124 | . 31 53 5 35 Peak Tracking Total 5 | . 4 5 3 4 Tactical Retreats 3 | . 1 1 . 1 Traps | -11 -10 -9 -8 -8 ------- Run | Jun Mat Mat Mat Sto Traps Triggered 4 | . 1 3 . . Indirectly . | . . . . . Trap Hack Attempts . | . . . . . Triggered . | . . . . . Disarmed . | . . . . . Reprogrammed . | . . . . . Reused . | . . . . . Traps Extracted . | . . . . . Installed . | . . . . . Triggered . | . . . . . Machines | -11 -10 -9 -8 -8 ---------- Run | Jun Mat Mat Mat Sto Machines Disabled 13 | . 1 5 . 7 Max in Single Turn 2 | . 1 2 . 1 Machines Repaired . | . . . . . Machines Sabotaged . | . . . . . Overloaded Fab Kills . | . . . . . Hacking | -11 -10 -9 -8 -8 --------- Run | Jun Mat Mat Mat Sto Machines Accessed 28 | . 6 14 1 7 Terminals 21 | . 4 9 1 7 Fabricators . | . . . . . Repair Stations 1 | . . 1 . . Recycling Units 4 | . 2 2 . . Scanalyzers 2 | . . 2 . . Garrison Access . | . . . . . Total Hacks 106 | . 20 62 1 23 Successful 64 | . 8 42 1 13 Failed 41 | . 12 19 . 10 Catastrophic 5 | . 2 2 . 1 Database Lockouts 1 | . . 1 . . Manual 46 | . 7 30 . 9 Terminals 74 | . 14 36 1 23 Fabricators . | . . . . . Repair Stations 6 | . . 6 . . Recycling Units 9 | . 6 3 . . Scanalyzers 17 | . . 17 . . Garrison Access . | . . . . . Terminal Hacks 40 | . 7 19 1 13 Part Schematic 7 | . 2 1 . 4 Prototype ID Bank 2 | . 1 1 . . Open Door 2 | . . . . 2 Level Access Points 1 | . . 1 . . Branch Access Points 1 | . . 1 . . Emergency Access Points 2 | . . 2 . . Terminal Index 1 | . . 1 . . Fabricator Index 1 | . . . . 1 Scanalyzer Index 1 | . . 1 . . Alert Level 9 | . 1 5 . 3 Unreport Threat 4 | . . 3 . 1 Locate Traps 1 | . . 1 . . Dispatch Records 1 | . . 1 . . Hauler Manifests 3 | . 1 1 . 1 Registered Components 1 | . 1 . . . Registered Prototypes 1 | . 1 . . . Zone Layout 2 | . . . 1 1 Fabricator Hacks . | . . . . . Repair Station Hacks 5 | . . 5 . . Scan Component 3 | . . 3 . . Repair 2 | . . 2 . . Recycling Unit Hacks 3 | . 1 2 . . Report Inventory 1 | . . 1 . . Retrieve Components 2 | . 1 1 . . Scanalyzer 16 | . . 16 . . Insert Component 7 | . . 7 . . Analyze 9 | . . 9 . . Garrison Access Hacks . | . . . . . Unauthorized Hacks . | . . . . . Terminals . | . . . . . Fabricators . | . . . . . Repair Stations . | . . . . . Recycling Units . | . . . . . Scanalyzers . | . . . . . Garrison Access . | . . . . . Data Cores Recovered 2 | . 1 . . 1 Used 2 | . 1 . . 1 Hacking Detections 25 | . 6 12 1 6 Full Trace Events 1 | . 1 . . . Feedback Events . | . . . . . Feedback Blocked . | . . . . . Robot Schematics Acquired . | . . . . . Robots Built . | . . . . . Authchips . | . . . . . Time . | . . . . . Total Robot Build Rating . | . . . . . Part Schematics Acquired 13 | . 2 8 . 3 Parts Built . | . . . . . Authchips . | . . . . . Time . | . . . . . Total Part Build Rating . | . . . . . Parts Repaired 2 | . . 2 . . Time 76 | . . 76 . . Parts Recycled . | . . . . . Recycled Matter . | . . . . . Retrieved Matter . | . . . . . Retrieved Components 3 | . 2 1 . . Parts Scanalyzed 7 | . . 7 . . Part Schematics Acquired 7 | . . 7 . . Parts Damaged . | . . . . . Bothacking | -11 -10 -9 -8 -8 ------------ Run | Jun Mat Mat Mat Sto Used RIF Installer . | . . . . . Robots Hacked . | . . . . . Non-combat . | . . . . . Combat . | . . . . . Robot Hacks Applied . | . . . . . Relay Couplers Released . | . . . . . Fabnet Peak Effective % . | . . . . . Robots Rewired . | . . . . . Allies Hacked . | . . . . . Hacks Repelled . | . . . . . Allies | -11 -10 -9 -8 -8 -------- Run | Jun Mat Mat Mat Sto Total Allies . | . . . . . Largest Group . | . . . . . Highest-Rated Group . | . . . . . Highest-Rated Ally . | . . . . . Total Orders . | . . . . . Ally Attacks . | . . . . . Total Damage . | . . . . . Kills . | . . . . . Allies Corrupted . | . . . . . Allies Melted . | . . . . . Intel | -11 -10 -9 -8 -8 ------- Run | Jun Mat Mat Mat Sto Robot Analysis Total . | . . . . . Derelict Logs Recovered . | . . . . . Drone Launches . | . . . . . Drone Recoveries . | . . . . . Exploration | -11 -10 -9 -8 -8 ------------- Run | Jun Mat Mat Mat Sto Turns Passed 6424 | . 1549 3075 147 1653 Spaces Moved 2532 | 1 768 1072 70 621 Core 9 | . 2 . . 7 Treads 1666 | . 272 1072 . 322 Legs 565 | 1 494 . . 70 Wheels . | . . . . . Hover 292 | . . . 70 222 Flight . | . . . . . Fastest Speed 116 | 120 120 240 116 116 Average Speed 197 | 120 167 241 116 168 Slowest Speed 550 | 120 300 320 116 550 Overloaded Moves . | . . . . . Propulsion Burnouts . | . . . . . Robots Hopped . | . . . . . Cave-ins Triggered 1 | . . . . 1 Exploration Rate (%) 50 | 2 82 90 10 69 Regions Visited 4 Branch Regions 1 Pre-discovered Areas . | . . . . . Known Exits Taken 2 | . . 1 1 . Unknown Exits Taken 2 | 1 1 . . . Scrap Searched . | . . . . . Spaces Dug 8 | . . . . 8 Terrain Destroyed 81 | . . . 16 65 Melee . | . . . . . Projectile 46 | . . . . 46 AOE 35 | . . . 16 19 Terrain Rammed . | . . . . . Walls Destroyed . | . . . . . Machines Disabled . | . . . . . Actions | -11 -10 -9 -8 -8 --------- Run | Jun Mat Mat Mat Sto Total 3347 | . 887 1344 109 1007 Wait 255 | . 7 108 . 140 Move 2528 | . 767 1071 69 621 Hop . | . . . . . Pick Up 70 | . 15 29 . 26 Fast Attach 10 | . 1 . . 9 Attach 32 | . 4 11 4 13 Detach 2 | . . . . 2 Swap 34 | . 5 9 4 16 Drop 55 | . 11 9 9 26 Fire 361 | . 77 107 23 154 Melee . | . . . . . Ram . | . . . . . Kick . | . . . . . Crush . | . . . . . Escape Stasis . | . . . . . Rewire . | . . . . . Trap . | . . . . . Miscellaneous . | . . . . . Route ------- -11/Junkyard -10/Materials (discovered 4 exits: *Mat x3 / [*Min]) -9/Materials (discovered 4 exits: *Mat x3 / *Min) -8/Materials -8/Storage History --------- Turn | Location | Event 1 | -11/Junkyard | Discovered new exit (range 0) 1 | -11/Junkyard | Entered Materials 344 | -10/Materials | Build established: Mutant 367 | -10/Materials | Core integrity fell below 50% 544 | -10/Materials | Discovered new exit (range 15) 560 | -10/Materials | Discovered new exit (range 10) 845 | -10/Materials | Discovered new exit (range 9) 1097 | -10/Materials | Discovered new exit (range 16) 1550 | -10/Materials | Entered another Materials area 1550 | -9/Materials | Evolved 2 slots: Utility x2 2083 | -9/Materials | Central database locked down 2284 | -9/Materials | Discovered new exit (range 16) 2747 | -9/Materials | Identified exit to Mines 3029 | -9/Materials | Discovered new exit (range 16) 3501 | -9/Materials | Discovered new exit (range 3) 3578 | -9/Materials | Lost 3 parts (1p1n1u) 3718 | -9/Materials | Repaired Hrd. Light Armor Plating 3763 | -9/Materials | Repaired Broken Imp. Treads 4191 | -9/Materials | Build established: Hacker-Mutant 4421 | -9/Materials | Identified exit to Materials 4625 | -9/Materials | Entered another Materials area 4625 | -8/Materials | Evolved 2 slots: Utility x2 4708 | -8/Materials | Discovered new exit (range 12) 4765 | -8/Materials | Identified exit to Storage 4772 | -8/Materials | Entered Storage 5347 | -8/Storage | Garrison activated, responded to threat 5381 | -8/Storage | Core integrity fell below 50% 5423 | -8/Storage | Lost 6 parts (1p2n1u2w) 5526 | -8/Storage | Found Prototype Protection 5527 | -8/Storage | Identified Lgt. Regenerative Plating 5917 | -8/Storage | Build established: Scavenger-Mutant 5934 | -8/Storage | Garrison activated, responded to threat 5967 | -8/Storage | Core integrity fell below 20% 6426 | -8/Storage | Crushed by falling debris 6426 | -8/Storage | Smashed by cave-in Last Messages --------------- 06345_ Y-45 Defender destroyed. 06362_ Acquired 48 matter. 06367_ Acquired Lgt. Treads. 06370_ Acquired 7 matter. 06392_ Slug penetrates Y-45 Defender. 06392_ Destroyed Lgt. Armor Plating. 06394_ Slug penetrates Y-45 Defender. 06394_ Y-45 Defender Hvy. Assault Rifle blasted off. 06402_ Transfer Shaft disabled. 06404_ Critical hit (Burn: +37). 06407_ Destroyed Heat Sink. 06409_ Y-45 Defender destroyed. 06421_ Acquired 9 matter. 06423_ Acquired 4 matter. 06423_ U-05 Engineer builds a Wall. 06424_ Slug penetrates Wall. 06426_ The unstable cave ceiling collapses. 06426_ Crushed by falling debris. 06426_ Hacking Suite destroyed. 06426_ System corrupted by crushing effect (+5). Map ----- +----------------------------------------------------+ | ???# ############## =% #????# | | ???# # + [ #????# | | ???# # """ ########### #????## ## | | ??## # "T" ##????????# %% #????###### | | ???# # "#????????#=% #??????#### | | ??## + #????????# #### ########### | | ?# #^^^# [ """ "#????????#*#### % | | ?#?#^^^# """ ##????????# #??# % % | | ???# # """ #?????????# #??# % % | | ???# # #?????????# #??######+##+#### | | ???# ############???????# #?##" = %=# | | ???# ######### ##########+###"" " ""# | | ???# # %!% # ##"" """"# | | ???# # # """"% ##"T """"# | | ???# # # "]]"" ##"" / """"# | | ???# + """ """ #! **""" ##"" #### | | ???# # """ """ # """ =" #### #??? | | ???# # """ """ # ""[["*%#??# #??? | | ???# # # "!%"=%##?# #??? | | ??## ############# %=!= %%##?##########??? | | ??# #######;#######+#######???????##????? | | ??# ! ????????????????? | | ??# [ ????????????????? | | ??# ????????????????? | | ??# #####+#####;######??????????????????? | | ??####### [#@#??????????????????????? | | ???????#T """ " "%####??????????????????????? | | ???????## """ """ #?????????????????????????? | | ????????# """ """ ""????????????????????????? | | ????????# """ R"???????????????????????? | | ????????# """ """???????????????????????? | | ?????????? ###???????????????????????? | | ?????????? #?????????????????????????? | | ??????????#########?????????????????????????? | | ????????????????????????????????????????????? | | ????????????????????????????????????????????? | | ????????????????????????????????????????????? | | ????????????????????????????????????????????? | | ????????????????????????????????????????????? | | ????????????????????????????????????????????? | | ????????????????????????????????????????????? | | | | | | | | | | | | | | | | | | | +----------------------------------------------------+ Best States ------------- Heat Dissipation 53 Energy Generation 18 Energy Capacity 280 Matter Stores 300 Matter Capacity 300 Sight Range 16 Robot Scan Range 15 Terrain Scan Density 10 Additional Mass Support 6 Base Temperature (-) 100 Armor Coverage 150 Evasion (%) 55 Recoil Reduction 2 Offensive Hacking 30 Authchip Count 5 Item Schematics ----------------- Sensor Array | -10/Materials | Hacked Signal Interpreter | -10/Materials | Hacked Imp. Hover Unit | -9/Materials | Hacked Cryofiber Web | -9/Materials | Scanalyzed Weight Redist. System | -9/Materials | Scanalyzed Imp. Grenade Launcher | -9/Materials | Scanalyzed Med. Storage Unit | -9/Materials | Scanalyzed Sml. Storage Unit | -9/Materials | Scanalyzed Hacking Suite | -9/Materials | Scanalyzed Hrd. Light Armor Plating | -9/Materials | Scanalyzed Adv. Treads | -8/Storage | Hacked System Shield | -8/Storage | Hacked Enh. Optical Array | -8/Storage | Hacked Robot Schematics ------------------ None Fabricated ------------ Nothing Alien Tech Used ----------------- None Achievements -------------- None Challenges ------------ None Game ------ Seed ComponentAssaultKatana Manual? 0 Play Time 00:47:17 Cumulative 76.7 hours Start 2023.07.04 @ 15:31:09 End 2023.07.04 @ 16:16:25 Sessions 1 Manual Loads 0 Difficulty Rogue Special Mode None Game No. 114 Rogue 114 Adventurer 0 Explorer 0 Win Type - Total 0 Types 0/0/0/0/0/0/0/0/0 Lore% 29 Gallery% 51 Achievement% 35 Wizard Run 0 Options --------- ASCII 0 Keyboard 0 Movement Mouse Keybinds 0 Fullscreen 2 Font 18/SmallcapsGlow Map View 76x50 Tactical HUD 1 Map Filters NONE Filters NONE Steam 1 RUN: 72dac059-3efa-4691-b675-adea847e4f23